bitfinex/quotes_SOLUSD_20241121
["timestamp","ask_amount","ask_price","bid_price","bid_amount"]
[1732162239186,24.53999189,237.34,237.27,72.89673658]
[1732162239406,24.53999189,237.39,237.31,24.53999189]
[1732162239697,24.53999189,237.37,237.31,5.72725534]
[1732162240397,24.53999189,237.39,237.31,30.26724723]
[1732162240594,0.4653634,237.4,237.32,5.72725534]
[1732162240811,0.4653634,237.4,237.32,35.30788543]
[1732162240993,25.00535529,237.4,237.32,35.30788543]
[1732162241810,24.53999189,237.37,237.32,10.76789354]
[1732162242114,24.53999189,237.37,237.32,5.0406382]
[1732162242416,24.53999189,237.33,237.27,36.86183693]
[1732162242799,0.4653634,237.4,237.27,36.86183693]
[1732162243093,24.53999189,237.33,237.27,28.5]
[1732162243922,24.53999189,237.29,237.25,5.0406382]
[1732162244097,24.53999189,237.27,237.21,5.72725534]
[1732162244300,24.53999189,237.22,237.16,33.5406382]
[1732162244901,0.5,237.34,237.16,58.08063009]
[1732162245101,24.53999189,237.23,237.16,63.80788543]
[1732162245415,24.53999189,237.23,237.17,5.72725534]
[1732162246121,24.53999189,237.21,237.17,5.72725534]
[1732162246424,24.53999189,237.19,237.09,13.1092]
[1732162246599,57.82659189,237.24,237.08,28.5]
[1732162246600,24.53999189,237.12,237.08,28.5]
[1732162246796,1.0,237.23,237.07,8.55530115]
[1732162246797,24.53999189,237.1,237.07,37.05530115]
[1732162246995,24.53999189,237.08,237.07,8.55530115]
[1732162247196,24.53999189,237.08,237.0,5.72725534]
[1732162247409,24.53999189,237.1,237.02,24.53999189]
[1732162247722,24.53999189,237.08,237.0,58.76724723]
[1732162247920,24.53999189,237.08,237.02,5.72725534]
[1732162248889,24.53999189,237.06,237.02,5.72725534]
[1732162249409,24.53999189,237.08,237.02,5.72725534]
[1732162249994,24.53999189,237.05,237.02,5.72725534]
[1732162250192,24.53999189,237.09,237.0,53.03999189]
[1732162250392,24.53999189,237.07,237.01,10.26450465]
[1732162251015,24.53999189,237.11,237.02,24.53999189]
[1732162251324,24.53999189,237.15,237.06,24.53999189]
[1732162251621,24.53999189,237.15,237.07,11.49469537]
[1732162251917,24.53999189,237.17,237.09,12.0397]
[1732162252117,24.53999189,237.19,237.11,24.53999189]
[1732162252330,24.53999189,237.17,237.11,28.5]
[1732162252919,57.82659189,237.24,237.11,28.5]
[1732162252920,24.53999189,237.19,237.11,28.5]
[1732162253118,24.53999189,237.19,237.11,34.22725534]
[1732162253327,24.53999189,237.19,237.11,58.76724723]
[1732162253507,24.53999189,237.19,237.11,64.53468726]
[1732162254121,24.53999189,237.19,237.12,11.49469537]
[1732162255400,24.53999189,237.21,237.13,24.53999189]
[1732162255624,24.53999189,237.23,237.15,24.53999189]
[1732162255955,24.53999189,237.23,237.16,5.72725534]
[1732162256117,24.53999189,237.23,237.16,34.22725534]
[1732162256421,25.03999189,237.36,237.17,24.53999189]
[1732162256422,24.53999189,237.25,237.17,24.53999189]
[1732162256723,24.53999189,237.25,237.17,58.80743192]
[1732162257224,24.53999189,237.25,237.17,34.26744003]
[1732162257416,24.53999189,237.21,237.17,34.26744003]
[1732162257622,24.53999189,237.21,237.17,28.5]
[1732162259925,24.53999189,237.19,237.17,28.5]
[1732162260312,24.53999189,237.19,237.11,28.5]
[1732162260525,24.53999189,237.12,237.04,12.9328]
[1732162260827,0.5,237.17,237.04,12.9328]
[1732162261032,23.776884,237.16,236.99,8.39678098]
[1732162261205,23.776884,237.16,236.99,28.5]
[1732162261401,0.5,237.12,236.98,28.5]
[1732162261738,23.776884,237.13,236.98,34.22725534]
[1732162261911,24.53999189,237.08,236.99,16.03194468]
[1732162262227,24.53999189,237.08,236.99,69.07193657]
[1732162262730,24.53999189,237.01,236.94,37.00782948]
[1732162263026,23.776884,237.14,236.99,24.53999189]
[1732162263027,24.53999189,237.07,236.99,24.53999189]
[1732162263208,23.776884,237.14,236.99,24.53999189]
[1732162263209,24.53999189,237.1,237.01,24.53999189]
[1732162263414,24.53999189,237.1,237.02,11.49469537]
[1732162264144,24.53999189,237.1,237.02,39.99469537]
[1732162265009,24.53999189,237.08,237.02,39.99469537]
[1732162265514,23.776884,237.18,237.02,39.99469537]
[1732162265846,24.53999189,237.13,237.05,24.53999189]
[1732162266038,24.53999189,237.15,237.07,24.53999189]
[1732162266335,24.53999189,237.15,237.08,11.49469537]
[1732162267335,24.53999189,237.17,237.09,29.0772412]
[1732162267639,24.53999189,237.17,237.1,11.42615648]
[1732162267937,24.53999189,237.17,237.1,34.22725534]
[1732162269234,24.53999189,237.15,237.1,28.5]
[1732162269427,24.53999189,237.12,237.09,28.5]
[1732162269740,24.53999189,237.12,237.06,12.3333]
[1732162269741,24.53999189,237.12,237.06,40.8333]
[1732162270237,24.53999189,237.1,237.06,40.8333]
[1732162270641,24.53999189,237.08,237.03,34.19890114]
[1732162270818,24.53999189,237.04,237.03,28.5]
[1732162271314,24.53999189,237.06,237.03,28.5]
[1732162271517,24.53999189,237.06,237.03,34.22725534]
[1732162271816,24.53999189,237.04,237.03,28.5]
[1732162272017,24.53999189,237.04,237.0,40.7435]
[1732162273025,24.53999189,237.08,237.01,30.26724723]
[1732162273342,24.53999189,237.1,237.01,35.96614837]
[1732162274228,24.53999189,237.1,237.03,24.53999189]
[1732162274543,24.53999189,237.1,237.03,30.26724723]
[1732162275149,24.53999189,237.1,237.03,58.76724723]
[1732162275722,24.53999189,237.08,237.03,34.22725534]
[1732162275923,24.53999189,237.06,237.03,28.5]
[1732162276143,24.53999189,237.04,237.03,28.5]
[1732162276339,24.53999189,237.04,237.0,40.7435]
[1732162276526,24.53999189,237.02,237.0,40.7435]
[1732162276923,24.53999189,237.04,237.0,40.7435]
[1732162277341,24.53999189,237.04,237.01,5.72725534]
[1732162277848,24.53999189,237.07,237.01,5.72725534]
[1732162278024,24.53999189,237.08,237.01,34.22725534]
[1732162278749,24.53999189,237.08,237.01,39.92615648]
[1732162278923,24.53999189,237.06,237.01,39.92615648]
[1732162279120,24.53999189,237.08,237.01,28.5]
[1732162279430,24.53999189,237.12,237.04,24.53999189]
[1732162279620,24.53999189,237.12,237.05,5.72725534]
[1732162279816,24.53999189,237.15,237.09,24.53999189]
[1732162280021,24.53999189,237.17,237.1,5.72725534]
[1732162280221,24.53999189,237.15,237.09,28.5]
[1732162280446,31.3387,237.23,237.09,28.5]
[1732162280447,24.53999189,237.13,237.09,28.5]
[1732162280949,31.3387,237.23,237.09,28.5]
[1732162281134,24.53999189,237.12,237.09,28.5]
[1732162281331,24.53999189,237.16,237.09,28.5]
[1732162281537,24.53174796,237.17,237.09,58.7590033]
[1732162282046,24.53174796,237.17,237.1,11.42615648]
[1732162282252,24.53174796,237.23,237.15,24.53174796]
[1732162282450,24.53174796,237.19,237.15,28.5]
[1732162283723,32.286,237.29,237.15,64.45790444]
[1732162283724,24.53174796,237.23,237.15,64.45790444]
[1732162284053,24.53174796,237.17,237.11,40.5602]
[1732162284234,24.53174796,237.14,237.11,40.5602]
[1732162284942,24.53174796,237.12,237.11,40.5602]
[1732162285127,24.5430743,237.12,237.11,28.5]
[1732162285323,24.5430743,237.12,237.07,28.5]
[1732162285530,24.5430743,237.1,237.07,28.5]
[1732162286158,24.5430743,237.08,237.07,28.5]
[1732162286337,24.5430743,237.08,237.06,28.5]
[1732162286659,24.5430743,237.08,237.02,28.5]
[1732162286953,24.5430743,237.04,237.02,28.5]
[1732162287127,24.5430743,237.04,237.0,34.19890114]
[1732162287328,24.5430743,237.02,237.0,34.19890114]
[1732162288052,24.5430743,237.02,237.0,5.69890114]
[1732162288736,24.5430743,237.02,236.96,28.5]
[1732162288928,1.0,237.11,236.96,28.5]
[1732162288929,24.5430743,236.97,236.96,28.5]
[1732162289130,24.5430743,236.97,236.93,5.69890114]
[1732162289428,24.5430743,236.94,236.89,28.5]
[1732162289729,24.5430743,236.94,236.91,5.69890114]
[1732162289932,24.5430743,236.92,236.91,5.69890114]
[1732162291450,24.5430743,236.96,236.91,11.42615648]
[1732162291651,24.5430743,236.96,236.89,28.5]
[1732162291652,24.5430743,236.98,236.92,11.42615648]
[1732162292253,24.5430743,236.96,236.92,11.42615648]
[1732162293249,24.5430743,236.96,236.92,39.92615648]
[1732162293955,30.2851,237.07,236.93,24.5430743]
[1732162293956,24.5430743,237.0,236.93,24.5430743]
[1732162294253,24.5430743,237.0,236.94,11.42615648]
[1732162294749,24.5430743,237.12,236.94,11.42615648]
[1732162294750,24.5430743,237.02,236.94,11.42615648]
[1732162294959,24.5430743,237.02,236.95,24.5430743]
[1732162295337,24.5430743,237.02,236.95,30.24197544]
[1732162295537,24.5430743,237.02,236.96,5.69890114]
[1732162296260,24.5430743,237.06,236.97,30.27032964]
[1732162296457,24.5430743,237.06,236.99,24.5430743]
[1732162296629,30.2851,237.13,237.01,24.5430743]
[1732162296630,24.5430743,237.08,237.01,24.5430743]
[1732162296829,24.5430743,237.1,237.03,24.5430743]
[1732162297049,24.5430743,237.12,237.04,11.42615648]
[1732162297431,24.5430743,237.1,237.04,11.42615648]
[1732162298256,24.5430743,237.1,237.03,28.5]
[1732162298257,24.5430743,237.08,237.03,28.5]
[1732162298451,24.5430743,237.06,237.03,28.5]
[1732162298765,24.5430743,237.04,237.03,28.5]
[1732162298941,24.5430743,237.04,237.0,41.5287]
[1732162299660,24.5430743,237.02,236.98,34.22725534]
[1732162300751,24.5430743,237.04,236.98,34.22725534]
[1732162301164,24.5430743,237.02,236.98,34.22725534]
[1732162301463,24.5430743,237.02,236.97,5.24354003]
[1732162301464,24.5430743,237.0,236.97,28.5]
[1732162301631,24.5430743,236.98,236.97,28.5]
[1732162301831,24.5430743,236.98,236.92,34.22725534]
[1732162302035,24.5430743,236.96,236.92,34.22725534]
[1732162303359,24.5430743,236.96,236.92,28.5]
[1732162303754,24.5430743,236.94,236.9,28.5]
[1732162304061,24.5430743,236.93,236.9,28.5]
[1732162304437,24.5430743,236.91,236.9,28.5]
[1732162305359,24.5430743,236.95,236.9,28.5]
[1732162305768,24.5430743,236.97,236.91,5.72725534]
[1732162306492,12.5679,237.08,236.91,30.27032964]
[1732162306776,24.5430743,236.99,236.91,58.77032964]
[1732162307152,12.5679,237.08,236.91,58.77032964]
[1732162307458,24.5430743,237.01,236.93,24.5430743]
[1732162307674,24.5430743,237.01,236.94,5.72725534]
[1732162307875,24.5430743,237.01,236.94,34.22725534]
[1732162308176,32.6059,237.13,236.99,24.5430743]
[1732162308378,32.6059,237.13,237.0,5.72725534]
[1732162308379,24.5430743,237.07,237.0,5.72725534]
[1732162308564,24.5430743,237.07,237.0,34.22725534]
[1732162310263,32.6059,237.13,237.0,34.22725534]
[1732162310566,24.5430743,237.08,237.0,39.47079537]
[1732162311401,23.776884,237.12,237.0,39.47079537]
[1732162311553,24.5430743,237.06,237.0,28.5]
[1732162312553,24.5430743,237.04,237.0,28.5]
[1732162312977,24.5430743,237.06,237.0,28.5]
[1732162313790,23.776884,237.12,237.0,34.22725534]
[1732162314074,24.5430743,237.08,237.01,5.72725534]
[1732162314267,24.5430743,237.06,237.01,5.72725534]
[1732162314670,24.5430743,237.06,237.01,28.5]
[1732162317095,24.5430743,237.02,237.01,28.5]
[1732162317254,24.5430743,237.02,236.95,44.00804468]
[1732162317457,24.5430743,236.98,236.95,28.5]
[1732162317667,24.5430743,236.96,236.95,28.5]
[1732162317984,24.5430743,236.96,236.92,28.5]
[1732162318279,24.5430743,236.93,236.92,28.5]
[1732162318487,24.5430743,236.95,236.92,28.5]
[1732162318778,24.5430743,236.98,236.92,39.47079537]
[1732162318981,24.5430743,236.98,236.93,5.24354003]
[1732162319854,24.5430743,236.98,236.92,28.5]
[1732162320683,23.776884,237.06,236.92,28.5]
[1732162320684,24.5430743,236.94,236.92,28.5]
[1732162321468,23.776884,237.06,236.92,28.5]
[1732162321793,24.5430743,236.99,236.93,10.97079537]
[1732162321976,24.5430743,236.97,236.93,39.47079537]
[1732162322168,24.5430743,236.97,236.93,28.5]
[1732162323856,24.5430743,236.99,236.93,28.5]
[1732162324058,24.5430743,237.03,236.95,24.5430743]
[1732162324292,24.5430743,237.03,236.96,10.97079537]
[1732162324458,24.5430743,237.03,236.96,39.47079537]
[1732162324790,24.5430743,237.05,236.97,24.5430743]
[1732162325085,24.5430743,237.05,236.97,53.0430743]
[1732162325471,24.5430743,237.05,236.98,5.72725534]
[1732162326082,24.5430743,237.01,236.98,5.72725534]
[1732162326271,24.5430743,237.01,236.97,28.5]
[1732162327490,23.776884,237.11,236.97,28.5]
[1732162327779,23.776884,237.11,236.93,33.03724931]
[1732162327780,24.5430743,236.98,236.93,33.03724931]
[1732162327989,24.5430743,236.94,236.86,12.7607]
[1732162328159,24.5430743,236.91,236.86,41.2607]
[1732162328359,24.5430743,236.89,236.86,41.2607]
[1732162328770,24.5430743,236.91,236.86,46.98795534]
[1732162328977,24.5430743,236.91,236.87,5.72725534]
[1732162330472,24.5430743,236.91,236.86,41.2607]
[1732162330789,24.5430743,236.89,236.86,41.2607]
[1732162330982,24.5430743,236.87,236.86,28.5]
[1732162331490,24.5430743,236.87,236.81,33.74354003]
[1732162331691,24.5430743,236.84,236.81,28.5]
[1732162332185,0.5,236.97,236.82,5.24354003]
[1732162332382,24.5430743,236.87,236.82,39.47079537]
[1732162332694,24.5430743,236.87,236.83,20.0]
[1732162333098,23.776884,236.99,236.84,5.24354003]
[1732162333099,24.5430743,236.91,236.84,5.24354003]
[1732162333389,24.5430743,236.91,236.85,20.0]
[1732162333593,23.776884,236.99,236.85,30.97079537]
[1732162333900,24.5430743,236.91,236.85,59.47079537]
[1732162334069,24.5430743,236.95,236.88,24.5430743]
[1732162334391,24.5430743,236.97,236.91,20.0]
[1732162334587,24.5430743,236.97,236.91,48.5]
[1732162334977,0.5,237.07,236.91,48.5]
[1732162335179,24.5430743,236.97,236.91,48.5]
[1732162335491,24.5430743,236.92,236.91,48.5]
[1732162336080,1.0,237.04,236.91,48.5]
[1732162336284,24.5430743,236.96,236.91,54.22725534]
[1732162336465,24.5430743,236.96,236.93,20.0]
[1732162337189,24.5430743,236.94,236.82,28.5]
[1732162337393,24.5430743,236.85,236.82,28.5]
[1732162338267,24.5430743,236.83,236.78,39.47079537]
[1732162338521,24.5430743,236.79,236.78,28.5]
[1732162338690,24.5430743,236.81,236.78,28.5]
[1732162339973,24.5430743,236.83,236.78,28.5]
[1732162340295,24.5430743,236.83,236.79,20.0]
[1732162340789,24.5430743,236.81,236.79,20.0]
[1732162341173,23.776884,236.87,236.79,20.0]
[1732162341380,24.5430743,236.82,236.79,20.0]
[1732162342375,24.5430743,236.82,236.79,48.5]
[1732162342597,1.0,236.95,236.79,48.5]
[1732162342891,28.7624743,237.0,236.81,20.0]
[1732162342892,24.5430743,236.86,236.81,20.0]
[1732162343101,24.5430743,236.86,236.82,5.72725534]
[1732162343289,24.5430743,236.88,236.83,20.0]
[1732162343500,24.5430743,236.92,236.84,10.97079537]
[1732162343802,24.5430743,236.92,236.85,20.0]
[1732162344202,24.5430743,236.92,236.85,48.5]
[1732162344492,24.5430743,236.9,236.85,48.5]
[1732162344872,24.5430743,236.86,236.85,48.5]
[1732162345072,24.5430743,236.86,236.77,5.72725534]
[1732162345277,24.5430743,236.81,236.77,34.22725534]
[1732162346092,24.5430743,236.81,236.77,28.5]
[1732162346299,24.5430743,236.79,236.77,28.5]
[1732162346665,24.5430743,236.88,236.77,28.5]
[1732162346885,24.5430743,236.78,236.77,28.5]
[1732162347689,24.5430743,236.78,236.77,48.5]
[1732162348369,24.5430743,236.78,236.75,20.0]
[1732162351379,24.5430743,236.88,236.75,20.0]
[1732162351380,24.5430743,236.76,236.75,20.0]
[1732162351998,23.776884,236.88,236.75,44.5430743]
[1732162352169,10.5478,237.02,236.75,44.5430743]
[1732162352170,24.5430743,236.83,236.75,84.01386967]
[1732162352372,24.5430743,236.83,236.76,5.72725534]
[1732162352597,24.5430743,236.83,236.77,20.0]
[1732162352893,24.5430743,236.83,236.79,20.0]
[1732162353551,13.8094,236.94,236.79,34.22725534]
[1732162353552,24.5430743,236.85,236.79,34.22725534]
[1732162353992,24.5430743,236.85,236.8,20.0]
[1732162354194,24.5430743,236.85,236.8,48.5]
[1732162354401,24.5430743,236.83,236.8,48.5]
[1732162355502,24.5430743,236.83,236.8,54.22725534]
[1732162355671,24.5430743,236.85,236.8,54.22725534]
[1732162355999,24.5430743,236.83,236.82,20.0]
[1732162356688,24.5430743,236.83,236.81,20.0]
[1732162358885,24.5430743,236.83,236.8,28.5]
[1732162359079,24.5430743,236.81,236.8,28.5]
[1732162360111,24.5430743,236.81,236.8,48.5]
[1732162361509,24.5430743,236.83,236.81,20.0]
[1732162361804,24.5430743,236.83,236.81,48.5]
[1732162361983,24.5430743,236.83,236.81,28.5]
[1732162362402,24.5430743,236.83,236.69,41.1956]
[1732162362708,24.5430743,236.7,236.69,41.1956]
[1732162363302,24.5430743,236.7,236.69,28.5]
[1732162363991,33.257,236.85,236.69,28.5]
[1732162364196,24.5430743,236.74,236.69,33.06788626]
[1732162364497,24.5430743,236.72,236.7,4.9888964]
[1732162364701,24.5430743,236.72,236.69,28.5]
[1732162364896,23.776884,236.84,236.69,28.5]
[1732162364897,24.5430743,236.7,236.69,28.5]
[1732162365293,24.5430743,236.7,236.66,28.5]
[1732162365488,24.5430743,236.67,236.66,28.5]
[1732162366515,24.5430743,236.67,236.66,48.5]
[1732162369394,24.5430743,236.68,236.67,20.0]
[1732162372816,15.39718887,236.68,236.67,20.0]
[1732162373310,15.39718887,236.68,236.67,48.5]
[1732162373609,23.776884,236.67,236.58,0.4653634]
[1732162373800,15.39718887,236.59,236.58,0.4653634]
[1732162375508,39.17407287,236.59,236.58,0.4653634]
[1732162375688,15.39718887,236.49,236.48,4.9888964]
[1732162375891,15.39718887,236.49,236.48,12.65678266]
[1732162376714,24.66699395,236.49,236.48,12.65678266]
[1732162377586,24.66699395,236.49,236.48,7.66788626]
[1732162377995,24.66699395,236.49,236.48,23.1]
[1732162378318,24.66699395,236.49,236.48,3.1]
[1732162380814,24.66699395,236.49,236.43,20.0]
[1732162381016,24.66699395,236.44,236.42,8.0888964]
[1732162381197,24.66699395,236.44,236.42,3.1]
[1732162381514,24.66699395,236.46,236.43,4.9888964]
[1732162381719,30.7231,236.6,236.43,4.9888964]
[1732162381720,24.66699395,236.48,236.46,3.1]
[1732162382818,24.66699395,236.49,236.47,17.4950964]
[1732162382990,30.7231,236.6,236.47,17.4950964]
[1732162382991,24.66699395,236.52,236.48,20.0]
[1732162383195,24.66699395,236.52,236.49,4.9888964]
[1732162383593,13.6865,236.68,236.49,4.9888964]
[1732162383594,24.66699395,236.53,236.49,4.9888964]
[1732162384520,24.66699395,236.53,236.5,20.0]
[1732162385496,24.66699395,236.51,236.49,3.1]
[1732162387718,33.201,236.65,236.49,3.1]
[1732162387901,24.66699395,236.53,236.5,4.9888964]
[1732162388216,24.66699395,236.53,236.5,8.0888964]
[1732162388598,24.66699395,236.53,236.51,20.0]
[1732162389302,24.66699395,236.52,236.5,3.1]
[1732162389513,24.66699395,236.51,236.5,3.1]
[1732162393124,24.66699395,236.51,236.5,8.0888964]
[1732162393498,24.66699395,236.51,236.5,23.1]
[1732162394021,24.66699395,236.51,236.5,3.1]
[1732162395802,23.776884,236.64,236.5,3.1]
[1732162396005,24.66699395,236.51,236.5,3.1]
[1732162396698,15.41510483,236.51,236.5,28.0888964]
[1732162396898,12.31510483,236.51,236.5,24.9888964]
[1732162397103,15.41510483,236.54,236.51,20.0]
[1732162397312,15.41510483,236.52,236.51,20.0]
[1732162397721,15.41510483,236.52,236.44,24.9888964]
[1732162397900,15.41510483,236.64,236.44,25.2888964]
[1732162398101,15.41510483,236.47,236.44,25.2888964]
[1732162398303,15.41510483,236.64,236.44,5.2888964]
[1732162398304,15.41510483,236.45,236.44,5.2888964]
[1732162399029,15.41510483,236.45,236.44,0.3]
[1732162399325,15.41510483,236.45,236.41,12.659]
[1732162399326,15.41510483,236.45,236.41,0.3]
[1732162399507,15.41510483,236.42,236.41,0.3]
[1732162400303,23.776884,236.51,236.41,0.3]
[1732162400619,15.41510483,236.42,236.41,5.2888964]
[1732162402614,39.19198883,236.52,236.42,20.0]
[1732162402615,15.41510483,236.43,236.42,20.0]
[1732162403225,15.41510483,236.43,236.41,0.3]
[1732162404125,15.41510483,236.42,236.41,0.3]
[1732162404425,15.41510483,236.47,236.42,0.3]
[1732162404620,15.41510483,236.49,236.43,4.58957974]
[1732162404800,15.41510483,236.51,236.43,20.30468457]
[1732162405005,15.41510483,236.51,236.46,20.0]
[1732162405813,31.1017,236.59,236.46,20.0]
[1732162405814,15.41510483,236.52,236.46,20.0]
[1732162406001,15.41510483,236.53,236.46,20.3]
[1732162406434,15.41510483,236.54,236.48,20.0]
[1732162406732,24.65848125,236.54,236.48,20.0]
[1732162407223,57.40918125,236.64,236.48,20.0]
[1732162407224,24.65848125,236.55,236.48,20.0]
[1732162408131,24.65848125,236.56,236.5,20.0]
[1732162408425,24.65848125,236.6,236.53,24.65848125]
[1732162408730,24.65848125,236.6,236.54,20.0]
[1732162409428,24.65848125,236.6,236.53,0.3]
[1732162409596,24.65848125,236.57,236.53,0.3]
[1732162409997,24.65848125,236.55,236.53,0.3]
[1732162410216,24.65848125,236.56,236.53,0.3]
[1732162410432,24.65848125,236.61,236.55,20.0]
[1732162410731,24.65848125,236.61,236.55,20.3]
[1732162411536,24.65848125,236.57,236.55,20.3]
[1732162411709,24.65848125,236.56,236.55,20.3]
[1732162412027,24.65848125,236.56,236.55,0.3]
[1732162412332,48.43536525,236.56,236.55,0.3]
[1732162415404,24.65848125,236.64,236.55,0.3]
[1732162415606,24.65848125,236.56,236.55,0.3]
[1732162418431,24.65848125,236.58,236.55,0.3]
[1732162418736,24.65848125,236.56,236.55,0.3]
[1732162419305,24.65848125,236.56,236.46,0.3]
[1732162419306,49.3169625,236.56,236.46,0.3]
[1732162419526,24.65848125,236.47,236.46,0.3]
[1732162419718,48.43536525,236.47,236.46,0.3]
[1732162422731,23.776884,236.47,236.46,0.3]
[1732162422919,48.43536525,236.47,236.46,0.3]
[1732162424037,23.776884,236.46,236.38,13.3554]
[1732162424242,24.65848125,236.39,236.38,13.3554]
[1732162426229,24.65848125,236.39,236.38,0.3]
[1732162426933,24.65848125,236.41,236.38,0.3]
[1732162427238,24.65848125,236.41,236.38,9.18327121]
[1732162428332,23.776884,236.46,236.38,9.18327121]
[1732162428566,24.65848125,236.45,236.39,28.88327121]
[1732162428725,15.42489466,236.45,236.39,28.88327121]
[1732162428932,15.42489466,236.43,236.39,29.18327121]
[1732162429748,15.42489466,236.41,236.39,4.59369147]
[1732162429928,15.42489466,236.41,236.39,0.3]
[1732162430234,15.42489466,236.43,236.39,0.3]
[1732162430444,15.42489466,236.45,236.4,8.90245849]
[1732162430641,15.42489466,236.47,236.4,8.90245849]
[1732162430825,15.42489466,236.47,236.4,9.20245849]
[1732162431145,15.42489466,236.47,236.41,20.0]
[1732162431310,15.42489466,236.51,236.47,0.3]
[1732162431516,12.6185,236.62,236.47,0.3]
[1732162431742,15.42489466,236.55,236.48,9.53658939]
[1732162431928,15.42489466,236.53,236.48,8.90245849]
[1732162432120,15.42489466,236.53,236.48,0.3]
[1732162432727,15.42489466,236.51,236.48,0.3]
[1732162433239,13.1185,236.62,236.48,0.3]
[1732162433432,15.42489466,236.53,236.48,0.3]
[1732162434236,15.42489466,236.51,236.48,0.3]
[1732162438241,15.42489466,236.55,236.48,0.3]
[1732162438417,15.42489466,236.55,236.48,9.20245849]
[1732162438937,15.42489466,236.53,236.48,4.61287875]
[1732162439246,15.42489466,236.53,236.48,0.3]
[1732162439823,15.42489466,236.64,236.48,0.3]
[1732162439824,15.42489466,236.49,236.48,0.3]
[1732162440039,13.2862,236.68,236.48,0.3]
[1732162440040,6.58128453,236.73,236.63,12.7612]
[1732162440231,7.55159204,236.79,236.73,20.0]
[1732162440435,7.55159204,236.79,236.73,0.3]
[1732162440636,15.42489466,236.76,236.73,0.3]
[1732162440842,7.55159204,236.79,236.73,0.3]
[1732162441042,22.9764867,236.79,236.73,0.3]
[1732162441445,15.42489466,236.77,236.73,4.74069144]
[1732162442454,7.55159204,236.78,236.73,0.3]
[1732162442836,24.60924651,236.81,236.73,0.3]
[1732162443336,24.60924651,236.79,236.73,0.3]
[1732162443539,24.60924651,236.77,236.73,0.3]
[1732162443743,24.60924651,236.75,236.73,0.3]
[1732162444837,1.0,236.84,236.73,0.3]
[1732162445038,24.60924651,236.8,236.73,0.3]
[1732162445644,24.60924651,236.78,236.73,0.3]
[1732162446031,24.60924651,236.75,236.73,0.3]
[1732162447234,24.60924651,236.75,236.7,2.7943]
[1732162447235,23.776884,236.74,236.7,2.7943]
[1732162447556,48.38613051,236.71,236.7,2.4943]
[1732162449136,1.0,236.67,236.55,0.3]
[1732162449437,77.21997702,236.71,236.48,12.5981]
[1732162449438,24.60924651,236.56,236.48,12.8981]
[1732162449642,24.60924651,236.52,236.48,12.8981]
[1732162449960,24.60924651,236.52,236.49,5.98420784]
[1732162450156,24.60924651,236.54,236.49,5.98420784]
[1732162450457,24.60924651,236.58,236.5,30.43974102]
[1732162450643,24.60924651,236.59,236.52,24.60924651]
[1732162450843,24.276884,236.71,236.52,24.60924651]
[1732162450844,24.60924651,236.62,236.55,24.60924651]
[1732162451146,24.60924651,236.64,236.56,36.42394886]
[1732162451346,24.60924651,236.66,236.58,24.60924651]
[1732162451678,12.5968,236.75,236.6,24.60924651]
[1732162451679,24.60924651,236.68,236.6,24.60924651]
[1732162451958,24.60924651,236.75,236.66,24.60924651]
[1732162452143,24.60924651,236.75,236.67,5.83049451]
[1732162453059,24.60924651,236.79,236.7,24.60924651]
[1732162453271,24.60924651,236.79,236.72,24.60924651]
[1732162453561,24.60924651,236.79,236.72,24.90924651]
[1732162453774,24.60924651,236.83,236.74,24.60924651]
[1732162454066,24.60924651,236.87,236.78,24.60924651]
[1732162454370,24.60924651,236.87,236.78,0.3]
[1732162454531,24.60924651,236.87,236.79,24.60924651]
[1732162455293,23.776884,236.86,236.79,24.60924651]
[1732162455586,23.776884,236.86,236.78,0.3]
[1732162455784,0.5,236.99,236.81,24.60924651]
[1732162455986,30.4372,237.0,236.83,24.60924651]
[1732162455987,24.60924651,236.9,236.83,24.60924651]
[1732162456163,24.60924651,236.9,236.83,24.90924651]
[1732162456986,24.60924651,236.88,236.83,0.3]
[1732162457571,0.5,236.97,236.83,0.3]
[1732162457883,55.54644651,237.0,236.76,0.3]
[1732162457884,48.38613051,236.84,236.76,0.3]
[1732162458064,24.60924651,236.8,236.76,0.3]
[1732162458263,24.60924651,236.78,236.76,0.3]
[1732162458987,25.10924651,236.88,236.76,0.3]